bitfinex/quotes_BTCUSD_20240902
["timestamp","ask_amount","ask_price","bid_price","bid_amount"]
[1725288067935,0.851527,58718.0,58717.0,0.1265444]
[1725288068154,0.853527,58718.0,58717.0,0.1265444]
[1725288068382,0.855527,58718.0,58717.0,0.1265444]
[1725288068604,0.172305,58718.0,58717.0,0.1265444]
[1725288068826,0.174305,58718.0,58717.0,0.1265444]
[1725288069286,0.514916,58718.0,58717.0,0.1265444]
[1725288069539,0.853527,58718.0,58717.0,0.1265444]
[1725288069750,0.510916,58718.0,58717.0,0.1265444]
[1725288069963,0.851527,58718.0,58717.0,0.1305444]
[1725288070191,0.510916,58718.0,58717.0,0.1305444]
[1725288070407,0.510916,58718.0,58717.0,0.1345444]
[1725288070616,0.851527,58718.0,58717.0,0.1345444]
[1725288071097,1.192138,58718.0,58717.0,0.1345444]
[1725288071343,1.192138,58718.0,58717.0,0.1328]
[1725288071561,1.192138,58718.0,58717.0,0.008]
[1725288071562,1.6519628,58718.0,58717.0,0.008]
[1725288071774,1.532749,58718.0,58717.0,0.008]
[1725288076380,1.192138,58718.0,58717.0,0.0097444]
[1725288076631,1.192138,58718.0,58717.0,0.2851444]
[1725288076632,0.170305,58718.0,58717.0,0.2851444]
[1725288076860,0.34059,58722.0,58717.0,0.2851444]
[1725288076861,0.51088,58722.0,58721.0,0.0017444]
[1725288077073,0.851467,58722.0,58721.0,0.0017444]
[1725288078185,0.852467,58722.0,58721.0,0.0017444]
[1725288078661,0.853467,58722.0,58721.0,0.1663444]
[1725288078876,0.853467,58722.0,58721.0,0.4619404]
[1725288078877,0.002,58722.0,58721.0,0.4619404]
[1725288079115,0.002,58722.0,58721.0,0.8025334]
[1725288079367,0.002,58722.0,58721.0,1.1431264]
[1725288079605,0.510659,58748.0,58747.0,0.2829444]
[1725288079831,0.50540786,58748.0,58747.0,0.2829444]
[1725288080047,0.47,58771.0,58753.0,0.0017444]
[1725288080048,0.170201,58754.0,58753.0,0.0017444]
[1725288080278,0.170201,58754.0,58753.0,0.1599444]
[1725288080933,0.510603,58754.0,58753.0,0.1599444]
[1725288081409,0.340362,58761.0,58760.0,0.0017444]
[1725288081410,0.510542,58761.0,58760.0,0.0017444]
[1725288081617,0.24293694,58762.0,58753.0,0.005]
[1725288081866,0.0082556,58768.0,58753.0,0.005]
[1725288081867,0.75353994,58754.0,58753.0,0.005]
[1725288082082,1.77674594,58754.0,58753.0,0.005]
[1725288082592,2.11714794,58754.0,58753.0,0.005]
[1725288082801,1.87474594,58754.0,58753.0,0.005]
[1725288083008,1.87474594,58754.0,58742.0,0.04947135]
[1725288083009,0.851165,58743.0,58742.0,0.04947135]
[1725288083453,0.851165,58743.0,58742.0,0.0017444]
[1725288083663,0.851192,58741.0,58740.0,0.0017444]
[1725288083894,1.191669,58741.0,58740.0,0.0017444]
[1725288084116,0.851192,58741.0,58740.0,0.0017444]
[1725288084362,0.340454,58746.0,58740.0,0.0017444]
[1725288084565,0.340454,58746.0,58732.0,0.00340489]
[1725288084566,0.170215,58749.0,58748.0,0.1588444]
[1725288084777,0.02669419,58761.0,58752.0,0.0017444]
[1725288084778,0.340413,58753.0,58752.0,0.0017444]
[1725288085029,0.01,58769.0,58748.0,0.1571]
[1725288085030,0.340294,58773.0,58758.0,0.0017444]
[1725288085234,0.170185,58760.0,58759.0,0.2897444]
[1725288085865,0.510552,58760.0,58759.0,0.2897444]
[1725288086103,0.34035,58764.0,58763.0,0.0017444]
[1725288086332,0.510522,58764.0,58763.0,0.0017444]
[1725288087191,0.510522,58764.0,58763.0,0.1642444]
[1725288087452,0.170172,58764.0,58763.0,0.1642444]
[1725288087669,0.170172,58764.0,58763.0,0.1682444]
[1725288087896,0.340328,58767.0,58763.0,0.1682444]
[1725288088113,0.170172,58764.0,58763.0,0.1682444]
[1725288088334,0.510516,58764.0,58763.0,0.1682444]
[1725288088987,0.510516,58764.0,58763.0,0.1712444]
[1725288089204,0.510484,58768.0,58765.0,0.0017444]
[1725288089427,0.170163,58767.0,58766.0,0.1300444]
[1725288089645,0.51149,58767.0,58766.0,0.1300444]
[1725288090098,0.51049,58767.0,58766.0,0.1300444]
[1725288091001,0.51149,58767.0,58766.0,0.1300444]
[1725288091224,0.001,58767.0,58766.0,0.2824444]
[1725288091487,0.51149,58767.0,58766.0,0.2824444]
[1725288091730,0.85083,58766.0,58765.0,0.0017444]
[1725288091971,1.191162,58766.0,58765.0,0.0017444]
[1725288092446,0.85083,58766.0,58765.0,0.0017444]
[1725288093138,0.85083,58766.0,58765.0,0.0047444]
[1725288093384,0.85083,58766.0,58765.0,0.0107444]
[1725288093854,1.191162,58766.0,58765.0,0.0107444]
[1725288094078,1.191162,58766.0,58765.0,0.009]
[1725288094509,1.531494,58766.0,58765.0,0.006]
[1725288094945,1.531494,58766.0,58765.0,0.013]
[1725288094946,1.532494,58766.0,58765.0,0.013]
[1725288095404,1.531494,58766.0,58765.0,0.006]
[1725288095621,1.191344,58757.0,58756.0,0.2731]
[1725288095833,1.191344,58757.0,58756.0,0.2748444]
[1725288096927,0.85096,58757.0,58756.0,0.2748444]
[1725288097152,0.171192,58757.0,58756.0,0.2808444]
[1725288097374,0.340375,58759.0,58757.0,0.16]
[1725288097628,0.170189,58758.0,58757.0,0.16]
[1725288097844,0.170189,58758.0,58757.0,0.1617444]
[1725288097845,0.510568,58758.0,58757.0,0.1617444]
[1725288098069,0.170189,58758.0,58757.0,0.1617444]
[1725288098292,0.340301,58772.0,58767.0,0.0017444]
[1725288098293,0.850805,58768.0,58767.0,0.0017444]
[1725288098565,1.191129,58768.0,58767.0,0.0017444]
[1725288099003,1.191129,58768.0,58767.0,0.1617444]
[1725288099236,0.850805,58768.0,58767.0,0.2870444]
[1725288099454,0.850805,58768.0,58767.0,0.2853]
[1725288099455,1.191129,58768.0,58767.0,0.2853]
[1725288099666,1.191129,58768.0,58764.0,0.0017444]
[1725288099667,0.24293694,58772.0,58764.0,0.0017444]
[1725288099876,0.850845,58765.0,58764.0,0.0017444]
[1725288100122,1.191183,58765.0,58764.0,0.0017444]
[1725288102330,1.192183,58765.0,58764.0,0.0087444]
[1725288102813,1.193183,58765.0,58764.0,0.0167444]
[1725288103042,0.852845,58765.0,58764.0,0.0167444]
[1725288103286,0.172169,58765.0,58764.0,0.1745444]
[1725288103502,0.002,58765.0,58764.0,0.3008444]
[1725288103728,0.002,58765.0,58764.0,0.30424749]
[1725288104443,0.002,58765.0,58764.0,0.3008444]
[1725288104893,0.340283,58775.0,58764.0,0.3008444]
[1725288104894,0.850542,58786.0,58785.0,0.0017444]
[1725288105095,0.510325,58786.0,58785.0,0.1227444]
[1725288106458,0.001,58786.0,58785.0,0.1327444]
[1725288106705,0.170107,58787.0,58786.0,0.0017444]
[1725288107194,0.850529,58787.0,58786.0,0.0017444]
[1725288107441,0.170107,58787.0,58786.0,0.0017444]
[1725288108138,0.170107,58787.0,58786.0,0.1557444]
[1725288108379,0.170102,58789.0,58788.0,0.0017444]
[1725288108615,0.34019,58791.0,58790.0,0.0017444]
[1725288108853,0.510284,58791.0,58790.0,0.0017444]
[1725288109386,0.510282,58791.0,58790.0,0.0017444]
[1725288110028,0.510282,58791.0,58790.0,0.0117444]
[1725288110250,0.170094,58791.0,58790.0,0.0117444]
[1725288110715,0.02667127,58807.0,58790.0,0.0117444]
[1725288110716,0.340165,58795.0,58790.0,0.0117444]
[1725288110923,0.34016,58796.0,58795.0,0.1216444]
[1725288110924,0.170079,58796.0,58795.0,0.1216444]
[1725288111146,0.510238,58796.0,58795.0,0.1216444]
[1725288111597,0.170079,58796.0,58795.0,0.1216444]
[1725288112258,0.510238,58796.0,58795.0,0.1216444]
[1725288112712,0.170076,58798.0,58795.0,0.1216444]
[1725288113037,0.510195,58801.0,58800.0,0.0017444]
[1725288113146,0.170065,58801.0,58800.0,0.2803444]
[1725288113558,0.510195,58801.0,58800.0,0.2803444]
[1725288114263,0.170051,58806.0,58805.0,0.0017444]
[1725288114490,0.340101,58806.0,58797.0,0.0017444]
[1725288114703,1.190476,58800.0,58799.0,0.0017444]
[1725288116293,1.190476,58800.0,58799.0,0.0067444]
[1725288116513,1.190476,58800.0,58799.0,0.005]
[1725288116756,1.190476,58800.0,58799.0,0.0067444]
[1725288117636,1.530612,58800.0,58799.0,0.005]
[1725288117849,1.530612,58800.0,58799.0,0.01]
[1725288118306,1.190476,58800.0,58799.0,0.01]
[1725288118737,1.190476,58800.0,58799.0,0.005]
[1725288118956,1.190535,58797.0,58796.0,0.0017444]
[1725288120551,1.190535,58797.0,58796.0,0.0027444]
[1725288120995,1.190535,58797.0,58796.0,0.001]
[1725288121213,1.530688,58797.0,58796.0,0.001]
[1725288121651,1.532688,58797.0,58796.0,0.001]
[1725288121860,1.872841,58797.0,58796.0,0.001]
[1725288122080,1.969241,58797.0,58796.0,0.001]
[1725288122759,0.170094,58791.0,58790.0,0.0017444]
[1725288122978,0.85047,58791.0,58790.0,0.0017444]
[1725288123229,1.190658,58791.0,58790.0,0.0017444]
[1725288123441,1.190658,58791.0,58790.0,0.1540444]
[1725288123652,1.190658,58791.0,58790.0,0.0017444]
[1725288124084,1.190738,58787.0,58786.0,0.1540444]
[1725288124310,0.340188,58791.0,58785.0,0.04921379]
[1725288124311,0.510325,58786.0,58785.0,0.04921379]
[1725288124559,0.170111,58785.0,58784.0,0.0017444]
[1725288124818,1.190777,58785.0,58784.0,0.0017444]
[1725288125891,0.451288,58792.0,58784.0,0.0017444]
[1725288126114,0.171111,58785.0,58784.0,0.013]
[1725288126341,0.851555,58785.0,58784.0,0.013]
[1725288126593,1.191777,58785.0,58784.0,0.013]
[1725288127075,1.533999,58785.0,58784.0,0.013]
[1725288127500,1.970621,58785.0,58784.0,0.027]
[1725288127735,2.081721,58785.0,58784.0,0.013]
[1725288127957,0.170143,58774.0,58769.0,0.0017444]
[1725288128185,0.170154,58770.0,58769.0,0.0017444]
[1725288128483,0.850772,58770.0,58769.0,0.0017444]
[1725288128803,0.85083,58766.0,58765.0,0.2817]
[1725288129046,0.340309,58770.0,58763.0,0.0017444]
[1725288129263,0.24293694,58774.0,58762.0,0.52791793]
[1725288129264,0.510525,58763.0,58762.0,0.0017444]
[1725288129510,1.191225,58763.0,58762.0,0.0017444]
[1725288130386,0.342329,58767.0,58761.0,0.0017444]
[1725288130387,1.191246,58762.0,58761.0,0.0017444]
[1725288131767,0.85189,58762.0,58761.0,0.0117444]
[1725288132657,0.511534,58762.0,58761.0,0.0117444]
[1725288132879,0.511534,58762.0,58761.0,0.0227444]
[1725288134256,0.510534,58762.0,58761.0,0.0017444]
[1725288134500,0.510534,58762.0,58761.0,0.0117444]
[1725288134714,0.511534,58762.0,58761.0,0.0207444]
[1725288134923,0.85189,58762.0,58761.0,0.0207444]
[1725288135175,0.85089,58762.0,58761.0,0.0117444]
[1725288135403,0.85189,58762.0,58761.0,0.0207444]
[1725288135874,0.85189,58762.0,58761.0,0.0107444]
[1725288136089,0.85189,58762.0,58761.0,0.0207444]
[1725288136998,1.192246,58762.0,58761.0,0.0207444]
[1725288137880,0.85189,58762.0,58761.0,0.0207444]
[1725288139696,1.192246,58762.0,58761.0,0.0207444]
[1725288139909,1.192246,58762.0,58761.0,0.019]
[1725288142292,1.532602,58762.0,58761.0,0.019]
[1725288142523,1.192246,58762.0,58761.0,0.019]
[1725288145279,1.192246,58762.0,58761.0,0.1755444]
[1725288146371,1.192246,58762.0,58761.0,0.3005444]
[1725288147108,0.85189,58762.0,58761.0,0.3005444]
[1725288147358,0.001,58762.0,58761.0,0.4707244]
[1725288147592,0.001,58762.0,58761.0,0.3005444]
[1725288147827,0.001,58762.0,58761.0,0.4707244]
[1725288148067,0.85189,58762.0,58761.0,0.3005444]
[1725288148981,1.192246,58762.0,58761.0,0.019]
[1725288152105,1.192246,58762.0,58761.0,1.019]
[1725288155019,1.7265663,58762.0,58761.0,1.019]
[1725288155471,1.7285663,58762.0,58761.0,1.019]
[1725288155931,1.7265663,58762.0,58761.0,1.019]
[1725288156650,1.532602,58762.0,58761.0,1.019]
[1725288156913,1.192246,58762.0,58761.0,1.019]
[1725288159417,0.001,58762.0,58761.0,1.3006444]
[1725288159661,0.001,58762.0,58761.0,2.75735022]
[1725288159877,0.001,58762.0,58761.0,3.56107222]
[1725288160113,0.001,58762.0,58761.0,3.4649074]
[1725288160358,0.001,58762.0,58761.0,3.56107222]
[1725288160574,0.001,58762.0,58761.0,3.55107222]
[1725288160821,0.001,58762.0,58761.0,3.56507222]
[1725288161270,0.170117,58783.0,58782.0,0.0017444]
[1725288162175,0.1069,58783.0,58771.0,0.05081896]
[1725288162379,0.17014,58775.0,58774.0,0.0017444]
[1725288162640,0.8507,58775.0,58774.0,0.0017444]
[1725288162878,0.8507,58775.0,58771.0,0.04907456]
[1725288162879,0.733547,58772.0,58771.0,0.04907456]
[1725288163113,0.733547,58772.0,58761.0,1.014]
[1725288163114,0.340356,58762.0,58761.0,1.014]
[1725288163355,0.85089,58762.0,58761.0,1.014]
[1725288163587,1.191246,58762.0,58761.0,1.014]
[1725288163822,1.191246,58762.0,58761.0,1.0]
[1725288164035,0.85089,58762.0,58761.0,1.0]
[1725288164493,1.191246,58762.0,58761.0,1.0]
[1725288164991,1.191246,58762.0,58761.0,1.004]
[1725288165220,0.85089,58762.0,58761.0,1.004]
[1725288166364,1.191246,58762.0,58761.0,1.004]
[1725288166606,1.191246,58762.0,58761.0,1.0]
[1725288167052,1.191246,58762.0,58761.0,1.005]
[1725288167305,1.191246,58762.0,58761.0,1.003]
[1725288167306,2.11416687,58762.0,58761.0,1.003]
[1725288167728,2.11416687,58762.0,58761.0,1.008]
[1725288167937,1.65468627,58762.0,58761.0,1.0]
[1725288168201,1.99504227,58762.0,58761.0,1.0]
[1725288169717,1.99504227,58762.0,58761.0,1.005]
[1725288169980,1.99504227,58762.0,58761.0,1.003]
[1725288170200,1.99504227,58762.0,58761.0,1.008]
[1725288170201,1.65268627,58762.0,58761.0,1.008]
[1725288170425,1.191246,58762.0,58761.0,1.005]
[1725288170660,0.85089,58762.0,58761.0,1.008]
[1725288171342,1.191246,58762.0,58761.0,1.008]
[1725288171568,1.43378627,58762.0,58761.0,1.008]
[1725288176453,1.77414227,58762.0,58761.0,1.008]
[1725288176692,1.60233791,58762.0,58761.0,1.008]
[1725288176903,1.94469391,58762.0,58761.0,1.008]
[1725288178795,1.77414227,58762.0,58761.0,1.008]
[1725288179452,1.77614227,58762.0,58761.0,1.008]
[1725288181431,1.77414227,58762.0,58761.0,1.008]
[1725288183002,1.77614227,58762.0,58761.0,1.008]
[1725288183258,2.70400987,58762.0,58761.0,1.008]
[1725288183483,2.46365387,58762.0,58761.0,1.008]
[1725288183708,2.63220551,58762.0,58761.0,1.008]
[1725288183957,2.63220551,58762.0,58761.0,0.871856]
[1725288184174,0.002,58745.0,58744.0,0.04991313]
[1725288184431,1.77458327,58745.0,58744.0,0.04991313]
[1725288184652,1.19169,58740.0,58739.0,0.1577444]
[1725288184890,1.19169,58740.0,58739.0,0.156]
[1725288186284,0.02669389,58752.0,58748.0,0.0017444]
[1725288186518,0.170215,58749.0,58748.0,0.0017444]
[1725288186735,0.851077,58749.0,58748.0,0.0017444]
[1725288186968,0.851077,58749.0,58748.0,0.2945444]
[1725288187178,1.191509,58749.0,58748.0,0.2945444]
[1725288187434,0.851077,58749.0,58748.0,0.2945444]
[1725288189503,1.192509,58749.0,58748.0,0.2945444]
[1725288189720,1.192509,58749.0,58748.0,0.2938]
[1725288190187,1.87058602,58749.0,58748.0,0.001]
[1725288190400,1.72708109,58749.0,58748.0,0.001]
[1725288192976,1.38664909,58749.0,58748.0,0.001]
[1725288193683,1.192509,58749.0,58748.0,0.001]
[1725288193894,1.192509,58749.0,58748.0,0.0027444]
[1725288193895,0.852077,58749.0,58748.0,0.0027444]
[1725288197301,0.001,58749.0,58748.0,0.0027444]
[1725288197543,0.001,58749.0,58748.0,1.1302364]
[1725288197771,0.001,58749.0,58748.0,1.4706734]
[1725288197980,0.001,58749.0,58748.0,1.1302364]
[1725288199350,0.001,58749.0,58748.0,1.1292364]
[1725288199585,0.001,58749.0,58746.0,0.35]
[1725288199586,0.170175,58763.0,58762.0,0.2757444]
[1725288200055,0.850875,58763.0,58762.0,0.2757444]
[1725288200695,0.510525,58763.0,58762.0,0.2757444]
[1725288202721,0.12668667,58776.0,58768.0,0.1574444]
[1725288202722,0.02668667,58776.0,58768.0,0.1574444]
[1725288202968,0.19682467,58776.0,58775.0,0.0007444]
[1725288203209,0.340202,58789.0,58775.0,0.0007444]
[1725288203210,0.340202,58789.0,58775.0,0.2747444]
[1725288203449,0.340202,58789.0,58775.0,0.274]
[1725288203450,0.510411,58776.0,58775.0,0.274]
[1725288203682,0.850685,58776.0,58775.0,0.274]
[1725288204141,0.855685,58776.0,58775.0,0.274]
[1725288204368,0.855685,58776.0,58775.0,0.009]
[1725288204369,1.196959,58776.0,58775.0,0.009]
[1725288204588,1.191959,58776.0,58775.0,0.009]
[1725288205021,1.191959,58776.0,58775.0,0.013]
[1725288205889,1.190959,58776.0,58775.0,0.004]
[1725288206105,1.191959,58776.0,58775.0,0.01]
[1725288206350,1.3111549,58776.0,58775.0,0.006]
[1725288206588,1.191959,58776.0,58775.0,0.006]
[1725288207478,1.191959,58776.0,58775.0,0.009]
[1725288210124,1.38609909,58776.0,58775.0,0.009]
[1725288210332,2.5170126,58776.0,58775.0,0.009]
[1725288210545,2.5190126,58776.0,58775.0,0.009]
[1725288210750,2.04012869,58776.0,58775.0,0.009]
[1725288210974,1.191305,58759.0,58758.0,0.04911693]
[1725288211437,0.85099,58755.0,58754.0,0.1257]
[1725288211668,0.170198,58755.0,58754.0,0.1264444]
[1725288211898,0.510594,58755.0,58754.0,0.1264444]
[1725288212579,0.85099,58755.0,58754.0,0.1264444]
[1725288213917,0.85099,58755.0,58754.0,0.1324444]
[1725288214340,0.511594,58755.0,58754.0,0.1284444]
[1725288214773,0.85199,58755.0,58754.0,0.1334444]
[1725288215001,0.85099,58755.0,58754.0,0.1307]
[1725288215223,0.85099,58755.0,58754.0,0.1314444]
[1725288215440,0.85199,58755.0,58754.0,0.1334444]
[1725288216096,0.85199,58755.0,58754.0,0.1284444]
[1725288216343,1.192386,58755.0,58754.0,0.1277]
[1725288216565,1.193386,58755.0,58754.0,0.1354444]
[1725288216773,1.192386,58755.0,58754.0,0.1334444]
[1725288216990,1.191386,58755.0,58754.0,0.1264444]
[1725288217198,1.192386,58755.0,58754.0,0.1264444]
[1725288217424,2.04066069,58755.0,58754.0,0.01]
[1725288218166,2.38105669,58755.0,58754.0,0.01]
[1725288218388,2.38005669,58755.0,58754.0,0.01]
[1725288218902,1.85916069,58755.0,58754.0,0.01]
[1725288219137,1.73992209,58755.0,58754.0,0.01]
[1725288219361,1.73992209,58755.0,58745.0,0.1232]
[1725288219362,1.191568,58746.0,58745.0,0.1232]
[1725288219611,1.191568,58746.0,58745.0,0.1239444]
[1725288221087,1.192568,58746.0,58745.0,0.1239444]
[1725288221474,1.192568,58746.0,58745.0,0.2762444]
[1725288221882,0.001,58746.0,58745.0,0.2762444]
[1725288222098,0.511672,58746.0,58745.0,0.2762444]
[1725288222518,0.85212,58746.0,58745.0,0.2762444]
[1725288222987,0.85412,58746.0,58745.0,0.2762444]
[1725288223430,0.85312,58746.0,58745.0,0.2762444]
[1725288223668,0.85412,58746.0,58745.0,0.2772444]
[1725288224134,0.85212,58746.0,58745.0,0.2772444]
[1725288224579,0.85212,58746.0,58745.0,0.2802444]
[1725288225047,1.192568,58746.0,58745.0,0.004]
[1725288225529,1.6622728,58746.0,58745.0,0.004]
[1725288225754,1.4118248,58746.0,58745.0,0.001]
[1725288225978,1.7522728,58746.0,58745.0,0.001]
[1725288226204,1.635016,58746.0,58745.0,0.001]
[1725288226437,1.304568,58746.0,58745.0,0.001]
[1725288226919,1.304568,58746.0,58729.0,0.4788]
[1725288226920,1.191792,58735.0,58732.0,0.0007444]
[1725288227164,1.191792,58735.0,58730.0,0.0007444]
[1725288227165,1.72644409,58735.0,58730.0,0.0007444]
[1725288227402,1.191872,58731.0,58730.0,0.0007444]
[1725288229259,1.021605,58731.0,58730.0,0.0007444]
[1725288229769,0.170279,58727.0,58726.0,0.0007444]
[1725288229992,0.851395,58727.0,58726.0,0.0007444]
[1725288230220,1.191953,58727.0,58726.0,0.0007444]
[1725288230462,0.510837,58727.0,58726.0,0.0007444]
[1725288230915,0.851395,58727.0,58726.0,0.0007444]
[1725288231137,0.851395,58727.0,58726.0,0.0037444]
[1725288232517,0.851395,58727.0,58726.0,0.0007444]
[1725288232518,0.852395,58727.0,58726.0,0.0007444]
[1725288232938,0.852395,58727.0,58726.0,0.0047444]
[1725288233187,0.852395,58727.0,58726.0,0.00870281]
[1725288233432,0.852395,58727.0,58726.0,0.00470281]
[1725288233654,0.852395,58727.0,58726.0,0.00670281]
[1725288233846,0.851395,58727.0,58726.0,0.00670281]
[1725288234062,0.851395,58727.0,58726.0,0.0027444]
[1725288234327,0.510837,58727.0,58726.0,0.0027444]
[1725288234521,0.510837,58727.0,58726.0,0.0007444]
[1725288234759,0.851395,58727.0,58726.0,0.0007444]
[1725288235420,0.510855,58725.0,58724.0,0.1233444]
[1725288235639,0.851425,58725.0,58724.0,0.1226]
[1725288235865,1.191995,58725.0,58724.0,0.1226]
[1725288236338,0.851467,58722.0,58721.0,0.1574]
[1725288236563,1.192054,58722.0,58721.0,0.1574]
[1725288237048,1.192054,58722.0,58721.0,0.1581444]
[1725288237049,0.170293,58722.0,58721.0,0.1581444]
[1725288237287,0.851467,58722.0,58721.0,0.1581444]
[1725288237752,1.192054,58722.0,58721.0,0.1631444]
[1725288237978,0.851467,58722.0,58721.0,0.1631444]
[1725288238451,0.852467,58722.0,58721.0,0.1631444]
[1725288240208,0.001,58722.0,58721.0,0.1631444]
[1725288240959,0.51188,58722.0,58721.0,0.1631444]
[1725288241187,0.51188,58722.0,58721.0,0.005]
[1725288241413,0.852467,58722.0,58721.0,0.005]
[1725288241836,0.85211846,58722.0,58721.0,0.005]
[1725288243450,0.51153146,58722.0,58721.0,0.0057444]
[1725288243667,0.17094446,58722.0,58721.0,0.0057444]
[1725288243908,0.00065146,58722.0,58721.0,0.00976596]
[1725288244146,0.51153146,58722.0,58721.0,0.00976596]
[1725288244366,0.00065146,58722.0,58721.0,0.52065496]
[1725288245592,0.00065146,58722.0,58721.0,0.18006196]
[1725288246050,0.00065146,58722.0,58721.0,0.30056196]
[1725288246266,0.00065146,58722.0,58721.0,0.98174796]
[1725288247663,0.00065146,58722.0,58721.0,0.64115496]
[1725288248133,0.00065146,58722.0,58721.0,0.98174796]
[1725288249273,0.00065146,58722.0,58721.0,0.64115496]
[1725288251343,0.00065146,58722.0,58721.0,0.30056196]
[1725288252007,0.00065146,58722.0,58721.0,0.64115496]
[1725288252655,0.00065146,58722.0,58721.0,0.30056196]
[1725288253792,0.00065146,58722.0,58721.0,0.13026596]
[1725288255127,0.17094446,58722.0,58721.0,0.00976596]
[1725288255367,0.85211846,58722.0,58721.0,0.00976596]
[1725288255611,0.51153146,58722.0,58721.0,0.00976596]
[1725288256266,0.85211846,58722.0,58721.0,0.00976596]
[1725288257621,0.340587,58722.0,58721.0,0.00976596]
[1725288257852,0.851467,58722.0,58721.0,0.00976596]
[1725288258071,0.51088,58722.0,58721.0,0.00976596]
[1725288258516,0.851467,58722.0,58721.0,0.00976596]
[1725288259694,1.288754,58722.0,58721.0,0.00902156]
[1725288260135,1.288754,58722.0,58721.0,0.005]
[1725288260876,0.170293,58722.0,58721.0,0.2797444]
[1725288261109,0.51088,58722.0,58721.0,0.16037386]
[1725288261358,0.851467,58722.0,58721.0,0.00977386]
[1725288261585,1.192054,58722.0,58721.0,0.00977386]
[1725288262020,1.192054,58722.0,58721.0,0.005]
[1725288262475,0.851467,58722.0,58721.0,0.0057444]
[1725288263378,1.192054,58722.0,58721.0,0.0057444]
[1725288263591,1.192054,58722.0,58721.0,0.005]
[1725288265483,1.71119264,58722.0,58721.0,0.005]
[1725288265707,1.81119264,58722.0,58721.0,0.005]
[1725288265935,1.642641,58722.0,58721.0,0.005]
[1725288266596,0.8516,58713.0,58712.0,0.0007444]
[1725288266819,0.440587,58722.0,58717.0,0.0007444]
[1725288266820,0.170307,58718.0,58717.0,0.0007444]
[1725288267069,0.510918,58718.0,58717.0,0.12938581]
[1725288267542,0.510918,58718.0,58717.0,0.0007444]
[1725288267768,0.851529,58718.0,58717.0,0.0007444]
[1725288268228,0.854529,58718.0,58717.0,0.0007444]
[1725288268479,0.1225125,58718.0,58717.0,0.00404141]
[1725288268697,0.510967,58712.0,58711.0,0.0007444]
[1725288268920,0.851612,58712.0,58711.0,0.0007444]
[1725288270084,0.170322,58712.0,58711.0,0.0007444]
[1725288270318,0.34062,58717.0,58716.0,0.0007444]
[1725288270563,0.510928,58717.0,58716.0,0.0007444]
[1725288270802,0.02670527,58721.0,58720.0,0.0007444]
[1725288270803,0.53759727,58721.0,58720.0,0.0007444]
[1725288271020,0.19700427,58721.0,58720.0,0.0007444]
[1725288271239,0.53759727,58721.0,58720.0,0.0007444]
[1725288271454,0.53759727,58721.0,58718.0,0.1508444]
[1725288271455,0.170302,58719.0,58718.0,0.1508444]
[1725288271703,0.510907,58719.0,58718.0,0.1508444]
[1725288271918,0.170302,58719.0,58718.0,0.1508444]
[1725288272362,0.510907,58719.0,58718.0,0.1508444]
[1725288273069,0.340597,58721.0,58718.0,0.1508444]
[1725288273070,0.170299,58720.0,58718.0,0.1478444]
[1725288273283,0.007,58721.0,58720.0,0.001]
[1725288273506,0.170297,58721.0,58718.0,0.1478444]
[1725288273868,0.170297,58721.0,58719.0,0.00404381]
[1725288274073,0.170293,58723.0,58719.0,0.00404381]
[1725288274269,0.02670253,58728.0,58721.0,0.170295]
[1725288274270,0.170286,58725.0,58721.0,0.170295]
[1725288274544,0.02670253,58728.0,58722.0,0.170293]
[1725288274751,0.02670253,58728.0,58711.0,0.1252]
[1725288274752,0.510967,58712.0,58711.0,0.1252]
[1725288274965,0.851612,58712.0,58711.0,0.1252]
[1725288275589,0.510967,58712.0,58711.0,0.1252]
[1725288275751,0.510967,58712.0,58705.0,0.170462]
[1725288275752,0.170334,58709.0,58705.0,0.170462]
[1725288275957,0.51102,58706.0,58705.0,0.00012]
[1725288276178,0.8517,58706.0,58705.0,0.00012]
[1725288276366,0.17034,58706.0,58705.0,0.00012]
[1725288276807,0.51102,58706.0,58705.0,0.00012]
[1725288277588,0.51102,58706.0,58705.0,0.01412]
[1725288277589,0.51202,58706.0,58705.0,0.01412]
[1725288278043,0.51202,58706.0,58705.0,0.00812]
[1725288278254,0.51102,58706.0,58705.0,0.00012]
[1725288278690,0.51202,58706.0,58705.0,0.00812]
[1725288279651,0.51302,58706.0,58705.0,0.01712]
[1725288280129,0.51202,58706.0,58705.0,0.00812]
[1725288280337,0.51302,58706.0,58705.0,0.01712]
[1725288281005,0.8537,58706.0,58705.0,0.01712]
[1725288281237,0.51302,58706.0,58705.0,0.01712]
[1725288281862,0.17234,58706.0,58705.0,0.01712]
[1725288282079,0.002,58706.0,58705.0,0.344763]
[1725288282294,0.002,58706.0,58705.0,0.813749]
[1725288285594,0.002,58706.0,58705.0,1.154435]
[1725288285810,0.002,58706.0,58705.0,0.813749]
[1725288286089,0.002,58706.0,58705.0,1.96223278]
[1725288286285,0.02670805,58721.0,58720.0,0.82873809]
[1725288286512,0.103,58737.0,58720.0,0.2821]
[1725288286741,0.170279,58727.0,58723.0,0.17029]
[1725288287026,0.170279,58727.0,58721.0,0.3439975]
[1725288287027,0.340556,58728.0,58720.0,0.33208912]
[1725288287240,0.02670272,58730.0,58721.0,0.00340551]
[1725288287507,0.02670272,58730.0,58723.0,0.340579]
[1725288287730,0.02670272,58730.0,58729.0,0.170273]
[1725288287946,0.20414009,58748.0,58729.0,0.170273]
[1725288287947,0.1017,58753.0,58737.0,0.17025]
[1725288288167,0.115,58755.0,58743.0,0.1223]
[1725288288168,0.50540786,58749.0,58743.0,0.1223]
[1725288288382,0.01,58760.0,58743.0,0.1223]
[1725288288612,0.21414009,58765.0,58743.0,0.1223]
[1725288288613,0.02669308,58750.0,58743.0,0.1223]
[1725288288851,0.170221,58747.0,58743.0,0.292532]
[1725288289069,0.170221,58747.0,58744.0,0.004011]